Cogmind - Beta 16 @@@ ROGUE MODE // 2025.10.22 @ 13:44:37 Player: Evo Result: Destroyed by S-10 Pest with Light Assault Rifle Performance ------------- Evolutions (0) 0 Regions Visited (1) 200 Robots Destroyed (10) 50 Value Destroyed (206) 206 Prototype IDs (2) 40 Alien Tech Used (0) 0 Bonus (0) 0 TOTAL SCORE: 496 Bonus ------- None Cogmind --------- Core Integrity 0/250 Matter 300/300 Energy 100/100 System Corruption 0% Temperature Cool (0) Movement Core (100) Ox1 Location -10/Materials Parts ------- > --- POWER (1) -------- (None) > --- PROPULSION (2) --- (None) > --- UTILITY (2) ------ Small Storage Unit > --- WEAPON (2) ------- Datajack > --- INVENTORY (8) ---- Assault Rifle Peak State ------------ > --- POWER ------------ Ion Engine > --- PROPULSION ------- Light Treads Light Treads > --- UTILITY ---------- Small Storage Unit Targeting Computer > --- WEAPON ----------- EM Pulse Gun Assault Rifle > --- INVENTORY -------- Light Assault Rifle [Rating: 7] Favorites ----------- Power Ion Engine Engine Ion Engine Propulsion Light Treads Treads Light Treads Utility Small Storage Unit Storage Small Storage Unit Processor Targeting Computer Weapon Assault Rifle Energy Gun EM Pulse Gun Ballistic Gun Assault Rifle Special Melee Weapon Datajack Build | -11 -10 ------- Run | Yrd Mat Slots Evolved . | . . Power . | . . Propulsion . | . . Utility . | . . Weapon . | . . Parts Attached 9 | 6 3 Power 1 | 1 . Engine 1 | 1 . Core . | . . Reactor . | . . Propulsion 2 | 2 . Treads 2 | 2 . Leg . | . . Wheel . | . . Hover . | . . Flight . | . . Utility 2 | 1 1 Device . | . . Storage 1 | 1 . Processor 1 | . 1 Hackware . | . . Protection . | . . Artifact . | . . Weapon 4 | 2 2 Energy Gun 2 | 1 1 Energy Cannon . | . . Ballistic Gun 1 | 1 . Ballistic Cannon . | . . Launcher . | . . Special Weapon . | . . Impact Weapon . | . . Slashing Weapon . | . . Piercing Weapon . | . . Special Melee Weapon 1 | . 1 Unidentified Prototypes . | . . Parts Lost 6 | . 6 Power 1 | . 1 Propulsion 2 | . 2 Utility 1 | . 1 Weapon 2 | . 2 Highest Loss Streak 5 | . 5 To Critical Strikes . | . . Average Backups . | . . Power . | . . Propulsion . | . . Utility . | . . Weapon . | . . Tool/Special . | . . Unused Backups 1 | . 1 Power . | . . Propulsion . | . . Utility . | . . Weapon 1 | . 1 Tool/Special . | . . Average Slot Usage (%) 88 | . 88 Engine 12 | . 12 Treads 25 | . 25 Storage 14 | . 14 Processor 9 | . 9 Energy Gun 12 | . 12 Ballistic Gun 6 | . 6 Special Melee Weapon 7 | . 7 Peak Build Rating 7 | 6 7 Average Rating 6 | 5 6 On Entrance 3 | . 6 Avg Prop Armor Cover (%) . | . . Naked Turns . | . . Heaviest Build 14 | 14 14 Greatest Support 40 | 40 40 Greatest Overweight (x) 2 | 2 2 Average Overweight (x) . | . . Largest Inventory Capacity 8 | 8 8 Average Capacity 7 | 7 8 Most Carried 1 | 1 1 Average Carried . | . . Final Capacity 8 | 8 8 Final Carried 1 | . 1 Class Distribution -------------------- 100% | Mutant Dominant Class ---------------- Mutant | -10/Materials Resources | -11 -10 ----------- Run | Yrd Mat Matter Collected 418 | 260 158 Remotely . | . . Salvage Created 270 | . 270 Parts 14 | . 14 Haulers Intercepted . | . . Recyclers Shooed 2 | . 2 Parts Field Recycled . | . . Retrieved Matter . | . . Parts Self-Destructed . | . . Prevented . | . . Parts Restored . | . . Kills | -11 -10 ------- Run | Yrd Mat Combat Hostiles Destroyed 8 | . 8 Guns 7 | . 7 AOE 1 | . 1 Classes Destroyed 4 | . 4 Worker 1 | . 1 Watcher 1 | . 1 Swarmer 4 | . 4 Grunt 4 | . 4 Best Kill Streak 3 | . 3 Combat Bots Only 3 | . 3 Max Kills in Single Turn 1 | . 1 Gunslinging . | . . Exploded 1 | . 1 Melee . | . . Uniques/NPCs Destroyed . | . . Combat | -11 -10 -------- Run | Yrd Mat Hostile Shots Fired 84 | . 84 Missed 17 | . 17 Hits 67 | . 67 Projectile 67 | . 67 Damage Taken 869 | . 869 Core 254 | . 254 Absorbed by Shields . | . . Core Remaining (%) 100 | 100 . Volleys Fired 45 | . 45 Largest 2 | . 2 Hottest 60 | . 60 Shots Fired 63 | . 63 Gun 63 | . 63 Cannon . | . . Launcher . | . . Special . | . . Kinetic 43 | . 43 Thermal 2 | . 2 Explosive . | . . Electromagnetic 18 | . 18 Robot Hit Streak 4 | . 4 Robot Miss Streak 4 | . 4 Penetration Max . | . . Secondary Targets 1 | . 1 Max Gunslinging Chain 1 | . 1 Shots Hit Robots 43 | . 43 Core Hits 18 | . 18 Critical Kills . | . . Critical Parts Destroyed . | . . Critical Strikes . | . . Melee Attacks 21 | . 21 Impact . | . . Slashing . | . . Piercing . | . . Sneak Attacks 9 | . 9 Combat Hostiles 1 | . 1 Follow-up Attacks . | . . Damage Inflicted 527 | . 527 Guns 384 | . 384 Cannons . | . . Explosions 138 | . 138 Melee . | . . Ramming 5 | . 5 Kinetic 238 | . 238 Thermal 162 | . 162 Explosive . | . . Electromagnetic 122 | . 122 Impact . | . . Slashing . | . . Piercing . | . . Highest Corruption . | . . Average Corruption . | . . Corruption Purged . | . . Corruption Blocked . | . . Overload Shots . | . . Overflow Damage 8 | . 8 Projectiles . | . . Explosions 8 | . 8 Melee . | . . Knockbacks . | . . Impact . | . . Kinetic . | . . Secondary . | . . Self-Inflicted Damage . | . . Shots . | . . Rammed 2 | . 2 Targets Rammed 2 | . 2 Kicked . | . . Crushed . | . . Highest Temperature 18 | . 18 Average Temperature 7 | . 7 Received Heat Transfer 132 | . 132 Siege Activations . | . . Martial Activations . | . . Shielding Activations . | . . Robots Disrupted . | . . Combat Hostiles . | . . Robots Corrupted . | . . Combat Hostiles . | . . Parts Fried . | . . Impact Corruptions . | . . Robots Melted . | . . Combat Hostiles . | . . Parts Melted . | . . Heat Transferred 250 | . 250 Parts Sabotaged . | . . Parts Stolen . | . . Parts Stripped . | . . Power Chain Reactions 2 | . 2 Alert | -11 -10 ------- Run | Yrd Mat Maximum Alert Level . | . . Low Security (%) 100 | 100 100 Level 1 . | . . Level 2 . | . . Level 3 . | . . Level 4 . | . . Level 5 . | . . High Security . | . . Max Security . | . . Peak Influence 82 | . 82 Initial . | . . Average 17 | . 21 Influence Increases 212 | . 212 Destroy 0b10 Robot/C 160 | . 160 Destroy 0b10 Robot/NC 10 | . 10 Destroy Leader 32 | . 32 Successful Hack 4 | . 4 Destroy Structure 6 | . 6 Influence Decreases 212 | . 212 Time Decay 202 | . 202 Lost Part 10 | . 10 Squads Dispatched 1 | . 1 Investigation . | . . Extermination . | . . Reinforcement 1 | . 1 Assault . | . . Garrison . | . . Intercept . | . . Searches Triggered . | . . Construction Impeded . | . . Haulers Reinforced . | . . Active Scanning Responses . | . . Cargo Convoy Interrupts . | . . Stealth | -11 -10 --------- Run | Yrd Mat Distress Signals 2 | . 2 Communications Jammed . | . . Distress Signals . | . . Times Spotted 24 | . 24 Peak Tracking Total 6 | . 6 Tactical Retreats 2 | . 2 Traps | -11 -10 ------- Run | Yrd Mat Traps Triggered . | . . Indirectly . | . . Trap Hack Attempts . | . . Triggered . | . . Disarmed . | . . Reprogrammed . | . . Reused . | . . Traps Extracted . | . . Installed . | . . Triggered . | . . Machines | -11 -10 ---------- Run | Yrd Mat Machines Disabled . | . . Max in Single Turn . | . . Machines Repaired . | . . Machines Dismantled . | . . Machines Sabotaged . | . . Overloaded Fab Kills . | . . Hacking | -11 -10 --------- Run | Yrd Mat Machines Accessed 2 | . 2 Terminals 2 | . 2 Fabricators . | . . Repair Stations . | . . Recycling Units . | . . Scanalyzers . | . . Garrison Access . | . . Total Hacks 8 | . 8 Successful 6 | . 6 Failed 2 | . 2 Catastrophic . | . . Database Lockouts . | . . Manual . | . . Terminals 8 | . 8 Fabricators . | . . Repair Stations . | . . Recycling Units . | . . Scanalyzers . | . . Garrison Access . | . . Terminal Hacks 6 | . 6 Record 5 | . 5 Prototype ID Bank 1 | . 1 Fabricator Hacks . | . . Repair Station Hacks . | . . Recycling Unit Hacks . | . . Scanalyzer . | . . Garrison Access Hacks . | . . Unauthorized Hacks . | . . Terminals . | . . Fabricators . | . . Repair Stations . | . . Recycling Units . | . . Scanalyzers . | . . Garrison Access . | . . Data Cores Recovered . | . . Used . | . . Hacking Detections 2 | . 2 Full Trace Events 2 | . 2 Feedback Events . | . . Feedback Blocked . | . . Robot Schematics Acquired . | . . Robots Built . | . . Authchips . | . . Time . | . . Total Robot Build Rating . | . . Part Schematics Acquired . | . . Parts Built . | . . Authchips . | . . Time . | . . Total Part Build Rating . | . . Part Studies Acquired . | . . Parts Repaired . | . . Time . | . . Parts Recycled . | . . Recycled Matter . | . . Retrieved Matter . | . . Retrieved Components . | . . Parts Scanalyzed . | . . Part Schematics Acquired . | . . Parts Damaged . | . . Bothacking | -11 -10 ------------ Run | Yrd Mat Used RIF Installer . | . . Robots Hacked 6 | . 6 Non-combat 5 | . 5 Combat 1 | . 1 Robot Hacks Applied 10 | . 10 parse_system 5 | . 5 no_distress 4 | . 4 check_alert 1 | . 1 Relay Couplers Released . | . . Fabnet Peak Effective % . | . . Robots Rewired . | . . Allies Hacked . | . . Hacks Repelled . | . . Allies | -11 -10 -------- Run | Yrd Mat Total Allies . | . . Largest Group . | . . Highest-Rated Group . | . . Highest-Rated Ally . | . . Total Orders . | . . Ally Attacks . | . . Total Damage . | . . Kills . | . . Allies Corrupted . | . . Allies Melted . | . . Intel | -11 -10 ------- Run | Yrd Mat Active Infowar (turns) . | . . Robot Analysis Total . | . . Derelict Logs Recovered . | . . Drone Launches . | . . Drone Recoveries . | . . Exploration | -11 -10 ------------- Run | Yrd Mat Turns Passed 965 | 165 800 Spaces Moved 532 | 113 419 Core 88 | 30 58 Treads 444 | 83 361 Legs . | . . Wheels . | . . Hover . | . . Flight . | . . Fastest Speed 50 | 50 100 Average Speed 149 | 138 151 Slowest Speed 160 | 160 160 Overloaded Moves . | . . Propulsion Burnouts . | . . Robots Hopped . | . . Potential Cave-ins . | . . Cave-ins Triggered . | . . Exploration Rate (%) 30 | 7 53 Regions Visited 1 Branch Regions . Pre-discovered Areas . | . . Known Exits Taken . | . . Unknown Exits Taken 1 | 1 . Scrap Searched . | . . Spaces Dug . | . . Terrain Destroyed 6 | . 6 Melee . | . . Projectile . | . . AOE 6 | . 6 Terrain Rammed . | . . Walls Destroyed . | . . Machines Disabled . | . . Actions | -11 -10 --------- Run | Yrd Mat Total 627 | 119 508 Wait 12 | . 12 Move 531 | 112 419 Hop . | . . Pick Up 3 | 1 2 Fast Attach 7 | 5 2 Attach 3 | 1 2 Detach 2 | . 2 Swap . | . . Drop 1 | . 1 Fire 45 | . 45 Melee 21 | . 21 Ram . | . . Kick . | . . Crush 2 | . 2 Escape Stasis . | . . Rewire . | . . Trap . | . . Miscellaneous . | . . Route ------- -11/Scrapyard -10/Materials (discovered 3 exits: [*Mat] / [*Min] / [*Sub]) History --------- Turn | Location | Event 2 | -11/Scrapyard | Met Revision 17 29 | -11/Scrapyard | Discovered new exit (range 15) 166 | -11/Scrapyard | Entered Materials 306 | -10/Materials | Build established: Mutant 578 | -10/Materials | Discovered new exit (range 14) 610 | -10/Materials | Discovered new exit (range 6) 766 | -10/Materials | Derelicts attacked the area 882 | -10/Materials | Core integrity fell below 50% 900 | -10/Materials | Core integrity fell below 20% 938 | -10/Materials | Lost 5 parts (1p2n1u1w) 961 | -10/Materials | Discovered new exit (range 10) 966 | -10/Materials | Destroyed by S-10 Pest with Light Assault Rifle Last Messages --------------- Jacked U-05 Engineer... >>no_distress Distress signal routine blocked. U-05 Engineer lays Concrete. Sneak attack on U-05 Engineer. Jacked U-05 Engineer... >>no_distress Distress signal routine blocked. U-05 Engineer lays Concrete. U-05 Engineer destroyed. U-05 Engineer lays Concrete. M-13 Machinist destroyed. U-05 Engineer lays Concrete. R-06 Scavenger collects Sml. Matter Pod. R-06 Scavenger collects Wheel. Sneak attack on U-05 Engineer. Jacked U-05 Engineer... >>no_distress Distress signal routine blocked. EXIT=FOUND Map ----- +----------------------------------------------------+ | | | | | | | | | | | | | | | | | | | | | ?????????????????????????????????????????????????? | | ?????????????????????????????????????????????????? | | ?????????????????????????????????????????????????? | | ?????????????????????????????????????????????????? | | ??????????????????????#####??????????????????????? | | ??????????????????????# #??????????????????????? | | ??????????????????????# < #??????????????????????? | | ??????????????????????#s #??????????????????????? | | ??????????????????????# #??????????????????????? | | ??????????????????????#s #?????????????????????## | | ??????????????????????#s #????????????????????##" | | ?????????#######?????## ##??????????????????##"! | | ?????????# ####### = #??????????????????#"" | | ?????????# #??????????????????# | | ?????????# " #??????????????????# | | ?????????# @ #??????????????????# | | ?????????# ####### #??????????????????# | | ?????????## ##?????########?????????????????## | | ??????????# #??????# #??????????????????## | | ??????????# #??????# """ #???????????????????# | | ???######## #??????# """ #???????????????????# | | ???# ######## """ #???????????????????# | | ???# ## ## """ ###########?????????# | | ???# ## ## """ # #######???# | | ???## ##### ## ## # # ##### | | ????#?????# ## ## ]# """ # | | ??????????# ## ## # """"" + | | ??????????# ## ## # """"" # | | ??????????# ## ## !! # """"" # ###### | | ??????????# ## ## ! # """ ## ##????? | | ?????????## ## ## # ## ####### | | ?????????# ###+######+############## + ] | | ?????????# % # | | ?????????+ % # """"" | | ?????????# ! ! # """"" | | ?????????# ###+## *=! = # """"" | | ?????????## ### # |%! =%= # | | ??????????# #?#!% # = !! "" ####+## | | ??????????# #?#! " "" #??# #? | | ??????????# #?#! " "" #### ## | +----------------------------------------------------+ Best States ------------- Heat Dissipation 25 Energy Generation 10 Energy Capacity 250 Matter Stores 300 Matter Capacity 300 Sight Range 16 Terrain Scan Density 10 Evasion (%) 50 Targeting Accuracy 5 Recoil Reduction 2 Item Schematics ----------------- None Robot Schematics ------------------ None Fabricated ------------ Nothing Repaired ---------- Nothing Studied --------- None Alien Tech Used ----------------- None Achievements -------------- DATA ERROR: Steam Global Achievement% For Emergencies Only Junior Dev You Again Challenges ------------ None Game ------ Seed StrikeProjectionBallwheel Manual? 0 Play Time 00:18:52 Cumulative 6.5 hours Start 2025.10.22 @ 13:01:55 End 2025.10.22 @ 13:44:37 Sessions 1 Manual Loads 0 Difficulty Rogue Special Mode None Game No. 27 Rogue 27 Adventurer 0 Explorer 0 Win Type - Total 0 Types 0/0/0/0/0/0/0/0/0/0 Lore% 3 Gallery% 8 Achievement% 4 Wizard Run 0 Options --------- Layout 1 ASCII 0 Keyboard 1 Movement Arrows Keybinds 0 Fullscreen 1 Font 32/SmallcapsGlow Map View 50x35 Zoom Use 0% Tactical HUD 0 Map Filters NONE Filters NONE Steam 1 RUN: 3dc210e3-2b0d-402c-855d-dd10565a8be0